[Event "Elite Hotels Open 2024"]
[Site "Elite Stadshotellet, Kungsgatan 6, Vaxjo, Sweden"]
[Date "2024.02.09"]
[Round "4.7"]
[White "Jepson, Christian"]
[Black "Eriksson, Kristian"]
[Result "1/2-1/2"]
[TimeControl "15 minutes + 5 seconds per move from move one (Round 1 - 4) / 90 minutes + 30 seconds per move from move one (Round 5 - 8)"]
[WhiteTitle "IM"]
[WhiteFideId "1701185"]
[BlackFideId "1705172"]
[WhiteElo "2386"]
[BlackElo "2035"]

1. c4 {[%clk 00:15:07]} {[%emt 00:00:02]} e6 {[%clk 00:15:05]} {[%emt
00:00:06]} 2. Nf3 {[%clk 00:15:05]} {[%emt 00:00:07]} b6 {[%clk 00:15:02]}
{[%emt 00:00:08]} 3. g3 {[%clk 00:15:09]} {[%emt 00:00:02]} Bb7 {[%clk
00:15:03]} {[%emt 00:00:04]} 4. Bg2 {[%clk 00:15:12]} {[%emt 00:00:02]} Nf6
{[%clk 00:14:56]} {[%emt 00:00:12]} 5. O-O {[%clk 00:15:13]} {[%emt 00:00:04]}
g6 {[%clk 00:14:21]} {[%emt 00:00:40]} 6. b3 {[%clk 00:14:45]} {[%emt
00:00:33]} Bg7 {[%clk 00:14:19]} {[%emt 00:00:06]} 7. Bb2 {[%clk 00:14:49]}
{[%emt 00:00:02]} O-O {[%clk 00:14:11]} {[%emt 00:00:13]} 8. d3 {[%clk
00:13:52]} {[%emt 00:01:02]} c5 {[%clk 00:13:34]} {[%emt 00:00:41]} 9. Nc3
{[%clk 00:12:58]} {[%emt 00:00:59]} Nc6 {[%clk 00:13:01]} {[%emt 00:00:39]} 10.
e3 {[%clk 00:12:35]} {[%emt 00:00:28]} d6 {[%clk 00:12:24]} {[%emt 00:00:41]}
11. d4 {[%clk 00:12:28]} {[%emt 00:00:13]} Qe7 {[%clk 00:11:28]} {[%emt
00:01:01]} 12. Qe2 {[%clk 00:12:00]} {[%emt 00:00:33]} Rfe8 {[%clk 00:10:52]}
{[%emt 00:00:40]} 13. Rfd1 {[%clk 00:11:58]} {[%emt 00:00:08]} Rad8 {[%clk
00:10:31]} {[%emt 00:00:26]} 14. a3 {[%clk 00:11:34]} {[%emt 00:00:30]} e5
{[%clk 00:08:32]} {[%emt 00:02:04]} 15. d5 {[%clk 00:10:17]} {[%emt 00:01:22]}
Nb8 {[%clk 00:08:31]} {[%emt 00:00:05]} 16. Nd2 {[%clk 00:09:42]} {[%emt
00:00:41]} Nbd7 {[%clk 00:08:17]} {[%emt 00:00:19]} 17. b4 {[%clk 00:09:32]}
{[%emt 00:00:16]} a6 {[%clk 00:07:43]} {[%emt 00:00:39]} 18. e4 {[%clk
00:09:29]} {[%emt 00:00:08]} Rc8 {[%clk 00:06:23]} {[%emt 00:01:25]} 19. Nb3
{[%clk 00:08:01]} {[%emt 00:01:32]} h5 {[%clk 00:05:56]} {[%emt 00:00:32]} 20.
bxc5 {[%clk 00:07:48]} {[%emt 00:00:19]} Nxc5 {[%clk 00:05:35]} {[%emt
00:00:25]} 21. Nxc5 {[%clk 00:07:46]} {[%emt 00:00:06]} bxc5 {[%clk 00:05:30]}
{[%emt 00:00:11]} 22. Bc1 {[%clk 00:07:23]} {[%emt 00:00:28]} Nd7 {[%clk
00:05:11]} {[%emt 00:00:24]} 23. Bd2 {[%clk 00:07:25]} {[%emt 00:00:04]} Rb8
{[%clk 00:05:03]} {[%emt 00:00:12]} 24. Rdb1 {[%clk 00:07:24]} {[%emt
00:00:07]} Ba8 {[%clk 00:04:33]} {[%emt 00:00:34]} 25. Qd1 {[%clk 00:07:18]}
{[%emt 00:00:10]} Rxb1 {[%clk 00:03:35]} {[%emt 00:01:04]} 26. Rxb1 {[%clk
00:07:21]} {[%emt 00:00:02]} Rb8 {[%clk 00:03:32]} {[%emt 00:00:08]} 27. Bh3
{[%clk 00:06:52]} {[%emt 00:00:34]} Rb7 {[%clk 00:02:21]} {[%emt 00:01:16]} 28.
Na4 {[%clk 00:03:12]} {[%emt 00:03:45]} Qd8 {[%clk 00:01:49]} {[%emt 00:00:37]}
29. Rxb7 {[%clk 00:02:38]} {[%emt 00:00:39]} Bxb7 {[%clk 00:01:52]} {[%emt
00:00:02]} 30. Qb3 {[%clk 00:02:41]} {[%emt 00:00:02]} Qc7 {[%clk 00:01:26]}
{[%emt 00:00:31]} 31. Kf1 {[%clk 00:02:27]} {[%emt 00:00:19]} Nf6 {[%clk
00:01:21]} {[%emt 00:00:10]} 32. Bg2 {[%clk 00:02:14]} {[%emt 00:00:18]} Kh7
{[%clk 00:01:18]} {[%emt 00:00:08]} 33. Qb6 {[%clk 00:01:59]} {[%emt 00:00:20]}
Qd7 {[%clk 00:01:14]} {[%emt 00:00:09]} 34. Nc3 {[%clk 00:01:32]} {[%emt
00:00:32]} Bh6 {[%clk 00:01:02]} {[%emt 00:00:17]} 35. Bxh6 {[%clk 00:01:32]}
{[%emt 00:00:06]} Kxh6 {[%clk 00:01:05]} 36. h4 {[%clk 00:01:02]} {[%emt
00:00:35]} Bc8 {[%clk 00:00:59]} {[%emt 00:00:12]} 37. Ke1 {[%clk 00:00:41]}
{[%emt 00:00:25]} Kg7 {[%clk 00:00:59]} {[%emt 00:00:05]} 38. Bf1 {[%clk
00:00:36]} {[%emt 00:00:09]} Kf8 {[%clk 00:00:36]} {[%emt 00:00:28]} 39. f3
{[%clk 00:00:40]} {[%emt 00:00:01]} Ke7 {[%clk 00:00:39]} {[%emt 00:00:03]} 40.
Kd1 {[%clk 00:00:41]} {[%emt 00:00:04]} Qb7 {[%clk 00:00:40]} {[%emt 00:00:04]}
41. Qxb7+ {[%clk 00:00:42]} {[%emt 00:00:04]} Bxb7 {[%clk 00:00:44]} 42. Bh3
{[%clk 00:00:43]} {[%emt 00:00:04]} Kd8 {[%clk 00:00:40]} {[%emt 00:00:10]} 43.
Kc2 {[%clk 00:00:46]} {[%emt 00:00:02]} Bc8 {[%clk 00:00:41]} {[%emt 00:00:04]}
44. Bxc8 Kxc8 {[%clk 00:00:45]} 45. f4 {[%clk 00:00:44]} {[%emt 00:00:04]} Nd7
{[%clk 00:00:41]} {[%emt 00:00:09]} 46. Nd1 {[%clk 00:00:40]} {[%emt 00:00:09]}
Kc7 {[%clk 00:00:39]} {[%emt 00:00:07]} 47. Nf2 {[%clk 00:00:43]} {[%emt
00:00:03]} exf4 {[%clk 00:00:36]} {[%emt 00:00:07]} 48. gxf4 {[%clk 00:00:47]}
{[%emt 00:00:01]} Kb6 {[%clk 00:00:37]} {[%emt 00:00:04]} 49. Nd3 {[%clk
00:00:46]} {[%emt 00:00:05]} f6 {[%clk 00:00:37]} {[%emt 00:00:05]} 50. Kb3
{[%clk 00:00:48]} {[%emt 00:00:03]} Ka5 {[%clk 00:00:30]} {[%emt 00:00:12]} 51.
Nf2 {[%clk 00:00:51]} {[%emt 00:00:02]} Kb6 {[%clk 00:00:32]} {[%emt 00:00:03]}
52. Nh1 {[%clk 00:00:53]} {[%emt 00:00:02]} Ka5 {[%clk 00:00:33]} {[%emt
00:00:04]} 53. Ng3 {[%clk 00:00:57]} g5 {[%clk 00:00:25]} {[%emt 00:00:14]} 54.
fxg5 {[%clk 00:00:44]} {[%emt 00:00:18]} fxg5 {[%clk 00:00:28]} 55. hxg5 {[%clk
00:00:48]} h4 {[%clk 00:00:32]} {[%emt 00:00:01]} 56. Nf1 {[%clk 00:00:47]}
{[%emt 00:00:06]} Ne5 {[%clk 00:00:33]} {[%emt 00:00:04]} 57. Nh2 {[%clk
00:00:48]} {[%emt 00:00:04]} h3 {[%clk 00:00:32]} {[%emt 00:00:06]} 58. a4
{[%clk 00:00:46]} {[%emt 00:00:07]} Kb6 {[%clk 00:00:34]} {[%emt 00:00:03]} 59.
Kc3 {[%clk 00:00:48]} {[%emt 00:00:03]} Ka5 {[%clk 00:00:36]} {[%emt 00:00:04]}
60. Kb3 {[%clk 00:00:52]} {[%emt 00:00:01]} Kb6 {[%emt 00:00:02]} 61. Kc3
{[%clk 00:00:47]} {[%emt 00:00:08]} Ka5 {[%clk 00:00:44]} {[%emt 00:00:01]} 62.
Kb3 {[%clk 00:00:51]} Kb6 {[%clk 00:00:48]} {[%emt 00:00:02]} 1/2-1/2

[Event "Elite Hotels Open 2024"]
[Site "Elite Stadshotellet, Kungsgatan 6, Vaxjo, Sweden"]
[Date "2024.02.09"]
[Round "4.8"]
[White "Lindberg, Bengt"]
[Black "Jakenberg, Jussi"]
[Result "1-0"]
[TimeControl "15 minutes + 5 seconds per move from move one (Round 1 - 4) / 90 minutes + 30 seconds per move from move one (Round 5 - 8)"]
[WhiteTitle "IM"]
[WhiteFideId "1700359"]
[BlackFideId "1710931"]
[WhiteElo "2331"]
[BlackElo "2039"]

1. e4 {[%clk 00:15:07]} {[%emt 00:00:02]} e5 {[%clk 00:15:08]} {[%emt
00:00:02]} 2. Nf3 {[%clk 00:15:11]} {[%emt 00:00:02]} Nc6 {[%clk 00:15:12]}
{[%emt 00:00:02]} 3. Bb5 {[%clk 00:15:13]} {[%emt 00:00:02]} a6 {[%clk
00:15:15]} {[%emt 00:00:03]} 4. Ba4 {[%clk 00:15:17]} {[%emt 00:00:01]} Nf6
{[%clk 00:15:17]} {[%emt 00:00:03]} 5. d3 {[%clk 00:15:19]} {[%emt 00:00:02]}
d6 {[%clk 00:15:17]} {[%emt 00:00:06]} 6. c3 {[%clk 00:15:16]} {[%emt
00:00:07]} g6 {[%clk 00:14:58]} {[%emt 00:00:24]} 7. O-O {[%clk 00:15:14]}
{[%emt 00:00:07]} Bg7 {[%clk 00:14:56]} {[%emt 00:00:08]} 8. Re1 {[%clk
00:15:02]} {[%emt 00:00:16]} Bd7 {[%clk 00:14:24]} {[%emt 00:00:38]} 9. Nbd2
{[%clk 00:15:01]} {[%emt 00:00:05]} O-O {[%clk 00:14:22]} {[%emt 00:00:07]} 10.
Nf1 {[%clk 00:14:52]} {[%emt 00:00:13]} h6 {[%clk 00:13:29]} {[%emt 00:01:00]}
11. Ng3 {[%clk 00:14:17]} {[%emt 00:00:39]} b5 {[%clk 00:13:06]} {[%emt
00:00:28]} 12. Bc2 {[%clk 00:14:08]} {[%emt 00:00:13]} Re8 {[%clk 00:12:50]}
{[%emt 00:00:22]} 13. h3 {[%clk 00:14:02]} {[%emt 00:00:11]} d5 {[%clk
00:12:05]} {[%emt 00:00:51]} 14. Be3 {[%clk 00:11:41]} {[%emt 00:02:26]} dxe4
{[%clk 00:11:41]} {[%emt 00:00:30]} 15. dxe4 {[%clk 00:11:24]} {[%emt
00:00:21]} Be6 {[%clk 00:11:05]} {[%emt 00:00:42]} 16. Qc1 {[%clk 00:11:24]}
{[%emt 00:00:05]} Kh7 {[%clk 00:11:03]} {[%emt 00:00:08]} 17. Rd1 {[%clk
00:10:16]} {[%emt 00:01:12]} Qe7 {[%clk 00:10:28]} {[%emt 00:00:40]} 18. b4
{[%clk 00:10:19]} {[%emt 00:00:02]} Nd7 {[%clk 00:10:06]} {[%emt 00:00:27]} 19.
Nf5 {[%clk 00:10:11]} {[%emt 00:00:13]} Qf8 {[%clk 00:08:42]} {[%emt 00:01:30]}
20. Nxg7 {[%clk 00:09:33]} {[%emt 00:00:43]} Qxg7 {[%clk 00:08:45]} {[%emt
00:00:02]} 21. a4 {[%clk 00:09:11]} {[%emt 00:00:27]} Nb6 {[%clk 00:08:24]}
{[%emt 00:00:26]} 22. Bxb6 {[%clk 00:08:45]} {[%emt 00:00:32]} cxb6 {[%clk
00:08:27]} {[%emt 00:00:01]} 23. Qe3 {[%clk 00:08:44]} {[%emt 00:00:04]} Rab8
{[%clk 00:07:53]} {[%emt 00:00:41]} 24. axb5 {[%clk 00:08:27]} {[%emt
00:00:22]} axb5 {[%clk 00:07:56]} {[%emt 00:00:02]} 25. Ra6 {[%clk 00:08:16]}
{[%emt 00:00:16]} Rec8 {[%clk 00:05:41]} {[%emt 00:02:20]} 26. Rd2 {[%clk
00:07:41]} {[%emt 00:00:39]} Bc4 {[%clk 00:04:50]} {[%emt 00:00:56]} 27. Rxb6
{[%clk 00:07:30]} {[%emt 00:00:16]} Qf8 {[%clk 00:04:12]} {[%emt 00:00:43]} 28.
Rxb8 {[%clk 00:07:14]} {[%emt 00:00:21]} Rxb8 {[%clk 00:04:04]} {[%emt
00:00:14]} 29. Bd3 {[%clk 00:06:55]} {[%emt 00:00:23]} Bxd3 {[%clk 00:04:02]}
{[%emt 00:00:07]} 30. Rxd3 {[%clk 00:06:58]} {[%emt 00:00:03]} Qe7 {[%clk
00:03:55]} {[%emt 00:00:12]} 31. Rd5 {[%clk 00:06:57]} {[%emt 00:00:05]} Kg7
{[%clk 00:03:41]} {[%emt 00:00:19]} 32. Qc5 {[%clk 00:06:43]} {[%emt 00:00:19]}
Qxc5 {[%clk 00:03:13]} {[%emt 00:00:34]} 33. Rxc5 {[%clk 00:06:45]} {[%emt
00:00:03]} Rb6 {[%clk 00:03:17]} 34. Nxe5 {[%clk 00:06:37]} {[%emt 00:00:13]}
Nxe5 {[%clk 00:03:20]} {[%emt 00:00:01]} 35. Rxe5 {[%clk 00:06:40]} {[%emt
00:00:02]} Rc6 {[%clk 00:03:11]} {[%emt 00:00:15]} 36. Rc5 {[%clk 00:05:10]}
{[%emt 00:01:35]} Rxc5 {[%clk 00:03:15]} {[%emt 00:00:01]} 37. bxc5 {[%clk
00:05:13]} {[%emt 00:00:02]} Kf6 {[%clk 00:03:18]} {[%emt 00:00:02]} 38. f4
{[%clk 00:05:16]} {[%emt 00:00:02]} Ke6 {[%clk 00:03:21]} {[%emt 00:00:02]} 39.
Kf2 {[%clk 00:05:18]} {[%emt 00:00:01]} Kd7 {[%clk 00:03:26]} {[%emt 00:00:02]}
40. Ke3 {[%clk 00:05:22]} {[%emt 00:00:02]} 1-0

[Event "Elite Hotels Open 2024"]
[Site "Elite Stadshotellet, Kungsgatan 6, Vaxjo, Sweden"]
[Date "2024.02.09"]
[Round "4.9"]
[White "Sandstrom, Anders"]
[Black "Kristensen, Kaare Hove"]
[Result "0-1"]
[TimeControl "15 minutes + 5 seconds per move from move one (Round 1 - 4) / 90 minutes + 30 seconds per move from move one (Round 5 - 8)"]
[BlackTitle "IM"]
[WhiteFideId "1706977"]
[BlackFideId "1400940"]
[WhiteElo "1988"]
[BlackElo "2324"]

1. Nf3 {[%clk 00:15:06]} {[%emt 00:00:06]} c5 {[%clk 00:15:02]} {[%emt
00:00:11]} 2. c4 {[%clk 00:15:09]} {[%emt 00:00:02]} Nf6 {[%clk 00:15:03]}
{[%emt 00:00:04]} 3. g3 {[%clk 00:15:13]} {[%emt 00:00:01]} d5 {[%clk
00:15:07]} {[%emt 00:00:02]} 4. d4 {[%clk 00:15:01]} {[%emt 00:00:17]} cxd4
{[%clk 00:14:36]} {[%emt 00:00:35]} 5. cxd5 {[%clk 00:14:51]} {[%emt 00:00:15]}
Qxd5 {[%clk 00:14:27]} {[%emt 00:00:13]} 6. Qxd4 {[%clk 00:14:49]} {[%emt
00:00:09]} Nc6 {[%clk 00:14:24]} {[%emt 00:00:07]} 7. Qxd5 {[%clk 00:14:31]}
{[%emt 00:00:23]} Nxd5 {[%clk 00:14:27]} {[%emt 00:00:02]} 8. a3 {[%clk
00:14:33]} {[%emt 00:00:04]} Bg4 {[%clk 00:13:28]} {[%emt 00:01:00]} 9. Nbd2
{[%clk 00:14:15]} {[%emt 00:00:26]} g6 {[%clk 00:12:28]} {[%emt 00:01:06]} 10.
Bg2 {[%clk 00:14:12]} {[%emt 00:00:08]} Bg7 {[%clk 00:12:12]} {[%emt 00:00:20]}
11. O-O {[%clk 00:13:43]} {[%emt 00:00:36]} O-O {[%clk 00:12:11]} {[%emt
00:00:05]} 12. h3 {[%clk 00:13:03]} {[%emt 00:00:45]} Bxf3 {[%clk 00:10:28]}
{[%emt 00:01:49]} 13. Bxf3 {[%clk 00:12:03]} {[%emt 00:01:04]} Rfd8 {[%clk
00:10:00]} {[%emt 00:00:33]} 14. e3 {[%clk 00:11:24]} {[%emt 00:00:44]} Rac8
{[%clk 00:09:05]} {[%emt 00:01:00]} 15. Rb1 {[%clk 00:10:42]} {[%emt 00:00:47]}
Ne5 {[%clk 00:08:24]} {[%emt 00:00:46]} 16. Be2 {[%clk 00:10:44]} {[%emt
00:00:04]} Nb6 {[%clk 00:08:05]} {[%emt 00:00:22]} 17. Kg2 {[%clk 00:08:55]}
{[%emt 00:01:55]} Rxc1 {[%clk 00:07:57]} {[%emt 00:00:13]} 18. Rbxc1 {[%clk
00:08:56]} {[%emt 00:00:04]} Rxd2 {[%clk 00:07:58]} {[%emt 00:00:04]} 19. Ra1
{[%emt 00:00:38]} Rd4 {[%emt 00:00:02]} 0-1

[Event "Elite Hotels Open 2024"]
[Site "Elite Stadshotellet, Kungsgatan 6, Vaxjo, Sweden"]
[Date "2024.02.09"]
[Round "4.10"]
[White "Eklund, Joel"]
[Black "Morell, Oscar"]
[Result "1-0"]
[TimeControl "15 minutes + 5 seconds per move from move one (Round 1 - 4) / 90 minutes + 30 seconds per move from move one (Round 5 - 8)"]
[WhiteFideId "1705288"]
[BlackFideId "1752952"]
[WhiteElo "2258"]
[BlackElo "1896"]

1. d4 {[%clk 00:15:07]} {[%emt 00:00:02]} d5 {[%clk 00:15:08]} {[%emt
00:00:02]} 2. Bg5 {[%clk 00:15:10]} {[%emt 00:00:03]} Nf6 {[%clk 00:15:03]}
{[%emt 00:00:10]} 3. Bxf6 {[%clk 00:15:13]} {[%emt 00:00:02]} gxf6 {[%clk
00:14:55]} {[%emt 00:00:12]} 4. c4 {[%clk 00:15:16]} {[%emt 00:00:02]} Bg4
{[%clk 00:12:02]} {[%emt 00:02:57]} 5. Nc3 {[%clk 00:15:02]} {[%emt 00:00:20]}
e6 {[%clk 00:11:39]} {[%emt 00:00:28]} 6. cxd5 {[%clk 00:14:56]} {[%emt
00:00:11]} exd5 {[%clk 00:11:38]} {[%emt 00:00:06]} 7. Qb3 {[%clk 00:14:59]}
{[%emt 00:00:03]} Na6 {[%clk 00:10:03]} {[%emt 00:01:39]} 8. e3 {[%clk
00:12:06]} {[%emt 00:02:59]} Bb4 {[%clk 00:08:52]} {[%emt 00:01:15]} 9. a3
{[%clk 00:11:29]} {[%emt 00:00:42]} Bxc3+ {[%clk 00:08:55]} {[%emt 00:00:03]}
10. Qxc3 {[%clk 00:11:33]} {[%emt 00:00:01]} Qd6 {[%clk 00:08:20]} {[%emt
00:00:38]} 11. Bd3 {[%clk 00:11:24]} {[%emt 00:00:15]} O-O-O {[%clk 00:07:35]}
{[%emt 00:00:50]} 12. Ne2 {[%clk 00:11:21]} {[%emt 00:00:08]} Nb8 {[%clk
00:05:23]} {[%emt 00:02:17]} 13. b4 {[%clk 00:10:24]} {[%emt 00:01:03]} Nd7
{[%clk 00:05:13]} {[%emt 00:00:15]} 14. Rc1 {[%clk 00:09:20]} {[%emt 00:01:09]}
Rhe8 {[%clk 00:04:19]} {[%emt 00:00:58]} 15. h3 {[%clk 00:07:07]} {[%emt
00:02:17]} Bxe2 {[%clk 00:04:03]} {[%emt 00:00:22]} 16. Bxe2 {[%clk 00:07:11]}
{[%emt 00:00:02]} f5 {[%clk 00:04:05]} {[%emt 00:00:02]} 17. g3 {[%clk
00:06:57]} {[%emt 00:00:19]} Nf6 {[%clk 00:03:58]} {[%emt 00:00:12]} 18. Qc5
{[%clk 00:06:52]} {[%emt 00:00:11]} Ne4 {[%clk 00:03:30]} {[%emt 00:00:33]} 19.
Qxd6 {[%clk 00:06:55]} {[%emt 00:00:02]} Rxd6 {[%clk 00:03:32]} {[%emt
00:00:02]} 20. Bd3 {[%clk 00:06:16]} {[%emt 00:00:45]} h5 {[%clk 00:03:06]}
{[%emt 00:00:31]} 21. h4 {[%clk 00:06:08]} {[%emt 00:00:13]} Rb6 {[%clk
00:01:22]} {[%emt 00:01:49]} 22. Rc2 {[%clk 00:05:23]} {[%emt 00:00:50]} a5
{[%clk 00:00:46]} {[%emt 00:00:41]} 23. b5 {[%clk 00:05:27]} {[%emt 00:00:01]}
Kd7 {[%clk 00:00:40]} {[%emt 00:00:12]} 24. O-O {[%clk 00:05:10]} {[%emt
00:00:21]} Rg6 {[%clk 00:00:10]} {[%emt 00:00:35]} 25. Rfc1 {[%clk 00:04:37]}
{[%emt 00:00:38]} Rc8 {[%clk 00:00:13]} {[%emt 00:00:02]} 26. Kg2 {[%clk
00:04:13]} {[%emt 00:00:28]} Nd6 {[%clk 00:00:07]} {[%emt 00:00:11]} 27. Rc5
{[%clk 00:03:55]} {[%emt 00:00:22]} c6 {[%clk 00:00:12]} {[%emt 00:00:01]} 28.
bxc6+ {[%clk 00:03:39]} {[%emt 00:00:22]} bxc6 {[%clk 00:00:16]} {[%emt
00:00:01]} 29. Rxa5 {[%clk 00:03:36]} {[%emt 00:00:07]} Rgg8 {[%clk 00:00:12]}
{[%emt 00:00:08]} 30. Ra7+ {[%clk 00:02:57]} {[%emt 00:00:44]} Rc7 {[%clk
00:00:16]} 31. Rxc7+ {[%clk 00:03:01]} {[%emt 00:00:02]} Kxc7 {[%clk 00:00:20]}
{[%emt 00:00:01]} 32. Rb1 {[%clk 00:02:54]} {[%emt 00:00:11]} Ra8 {[%clk
00:00:17]} {[%emt 00:00:07]} 33. Rb3 {[%clk 00:02:58]} {[%emt 00:00:01]} Rb8
{[%clk 00:00:07]} {[%emt 00:00:15]} 34. Rxb8 {[%clk 00:02:51]} {[%emt
00:00:13]} Kxb8 {[%clk 00:00:10]} {[%emt 00:00:01]} 35. Kf3 {[%clk 00:02:55]}
1-0

[Event "Elite Hotels Open 2024"]
[Site "Elite Stadshotellet, Kungsgatan 6, Vaxjo, Sweden"]
[Date "2024.02.09"]
[Round "4.11"]
[White "Wickstrom, Carina"]
[Black "Mashhadi, Peyman"]
[Result "0-1"]
[TimeControl "15 minutes + 5 seconds per move from move one (Round 1 - 4) / 90 minutes + 30 seconds per move from move one (Round 5 - 8)"]
[WhiteFideId "1743201"]
[BlackFideId "1768581"]
[WhiteElo "1884"]
[BlackElo "2073"]

1. e4 {[%clk 00:15:09]} e6 {[%clk 00:15:06]} {[%emt 00:00:05]} 2. d4 {[%clk
00:15:12]} {[%emt 00:00:02]} d5 {[%clk 00:15:08]} {[%emt 00:00:03]} 3. Nc3
{[%clk 00:15:16]} {[%emt 00:00:02]} Nf6 {[%clk 00:15:09]} {[%emt 00:00:04]} 4.
e5 {[%clk 00:15:19]} {[%emt 00:00:02]} Nfd7 {[%clk 00:15:10]} {[%emt 00:00:03]}
5. f4 {[%clk 00:15:22]} {[%emt 00:00:02]} c5 {[%clk 00:15:08]} {[%emt
00:00:06]} 6. Nf3 {[%clk 00:15:25]} {[%emt 00:00:03]} Nc6 {[%clk 00:15:09]}
{[%emt 00:00:04]} 7. Be3 {[%clk 00:15:09]} {[%emt 00:00:21]} a6 {[%clk
00:14:57]} {[%emt 00:00:17]} 8. Ne2 {[%clk 00:15:01]} {[%emt 00:00:13]} b5
{[%clk 00:14:48]} {[%emt 00:00:14]} 9. g3 {[%clk 00:14:23]} {[%emt 00:00:43]}
Qb6 {[%clk 00:14:24]} {[%emt 00:00:29]} 10. Bg2 {[%clk 00:13:41]} {[%emt
00:00:48]} cxd4 {[%clk 00:13:36]} {[%emt 00:00:52]} 11. Nexd4 {[%clk 00:13:34]}
{[%emt 00:00:12]} Bc5 {[%clk 00:13:13]} {[%emt 00:00:28]} 12. O-O {[%clk
00:12:53]} {[%emt 00:00:46]} Bb7 {[%clk 00:12:02]} {[%emt 00:01:16]} 13. Kh1
{[%clk 00:12:31]} {[%emt 00:00:27]} g6 {[%clk 00:10:33]} {[%emt 00:01:35]} 14.
c3 {[%clk 00:11:57]} {[%emt 00:00:39]} b4 {[%clk 00:09:54]} {[%emt 00:00:43]}
15. cxb4 {[%clk 00:10:46]} {[%emt 00:01:16]} Nxb4 {[%clk 00:08:44]} {[%emt
00:01:15]} 16. a3 {[%clk 00:10:21]} {[%emt 00:00:31]} Nc6 {[%clk 00:08:47]}
{[%emt 00:00:02]} 17. b4 {[%clk 00:10:13]} {[%emt 00:00:12]} Bxd4 {[%clk
00:08:34]} {[%emt 00:00:18]} 18. Nxd4 {[%clk 00:09:31]} {[%emt 00:00:47]} Qd8
{[%clk 00:07:50]} {[%emt 00:00:49]} 19. Rc1 {[%clk 00:08:45]} {[%emt 00:00:51]}
Nxd4 {[%clk 00:07:34]} {[%emt 00:00:20]} 20. Qxd4 {[%clk 00:08:25]} {[%emt
00:00:25]} O-O {[%clk 00:07:22]} {[%emt 00:00:17]} 21. Rc2 {[%clk 00:05:46]}
{[%emt 00:02:44]} Rc8 {[%clk 00:06:39]} {[%emt 00:00:48]} 22. Rfc1 {[%clk
00:05:19]} {[%emt 00:00:31]} Rxc2 {[%clk 00:05:24]} {[%emt 00:01:20]} 23. Rxc2
{[%clk 00:05:24]} {[%emt 00:00:01]} Qb8 {[%clk 00:05:27]} {[%emt 00:00:02]} 24.
a4 {[%clk 00:04:21]} {[%emt 00:01:08]} Rc8 {[%clk 00:05:09]} {[%emt 00:00:22]}
25. Rxc8+ {[%clk 00:03:43]} {[%emt 00:00:43]} Qxc8 {[%clk 00:05:12]} {[%emt
00:00:02]} 26. b5 {[%clk 00:03:14]} {[%emt 00:00:35]} axb5 {[%clk 00:04:58]}
{[%emt 00:00:19]} 27. axb5 {[%clk 00:03:17]} {[%emt 00:00:02]} Qc2 {[%clk
00:04:24]} {[%emt 00:00:38]} 28. b6 {[%clk 00:02:51]} {[%emt 00:00:31]} Ba6
{[%clk 00:03:00]} {[%emt 00:01:29]} 29. Qb4 {[%clk 00:01:20]} {[%emt 00:01:36]}
Qc6 {[%clk 00:01:49]} {[%emt 00:01:16]} 30. h4 {[%clk 00:00:55]} {[%emt
00:00:31]} Kg7 {[%clk 00:01:34]} {[%emt 00:00:20]} 31. Kh2 {[%clk 00:00:34]}
{[%emt 00:00:26]} Bb7 {[%clk 00:01:16]} {[%emt 00:00:24]} 32. h5 {[%clk
00:00:32]} {[%emt 00:00:08]} Qc2 {[%clk 00:00:58]} {[%emt 00:00:23]} 33. hxg6
{[%clk 00:00:25]} {[%emt 00:00:12]} hxg6 {[%clk 00:00:57]} {[%emt 00:00:06]} 34.
Qd6 {[%clk 00:00:10]} {[%emt 00:00:20]} d4 {[%emt 00:00:16]} 35. Bxd4 {[%clk
00:00:08]} {[%emt 00:00:04]} Qxg2# {[%clk 00:00:50]} {[%emt 00:00:02]} 0-1